[Event "5th Sharjah Masters 2022"]
[Site "Sharjah"]
[Date "2022.05.25"]
[Round "5.9"]
[White "Sarana, Alexey"]
[Black "Indjic, Aleksandar"]
[Result "1-0"]
[ECO "E49"]
[WhiteElo "2675"]
[BlackElo "2621"]
[Annotator "TA"]
[PlyCount "89"]
[EventDate "2022.05.21"]
[EventType "swiss"]
[EventCountry "UAE"]
[SourceTitle "playchess.com"]
[Source "ChessBase"]
[SourceQuality "1"]
[TimeControl "5400+30"]

{[%evp 16,89,25,23,42,25,33,33,22,36,47,31,67,25,107,107,104,108,120,117,122,136,116,103,182,185,183,145,160,154,157,157,158,157,158,157,162,159,197,188,180,151,193,181,271,260,329,319,381,383,357,328,266,150,150,150,240,285,272,169,495,455,495,477,364,387,580,562,876,865,862,831,1977,850,827,812]} 1. d4 {[%emt 0:00:03]} Nf6 {[%emt 0:00:26]} 2. c4 {[%emt 0:00:04]} e6 {[%emt 0:00:06]} 3. Nc3 {[%emt 0:00:05]} Bb4 {[%emt 0:02:07]} 4. e3 {[%emt 0:00:14]} O-O {[%emt 0:02:29]} 5. Bd3 {[%emt 0:00:05]} d5 {[%emt 0:04:47]} 6. a3 {[%emt 0:00:31]} Bxc3+ {[%emt 0:03:12]} 7. bxc3 {[%emt 0:00:02]} c5 {[%emt 0:00:24]} 8. cxd5 {[%emt 0:01:38]} Qxd5 {[%emt 0:05:06]} 9. Nf3 {[%emt 0:01:10][%cal Oe3e4]} b6 {[%emt 0:00:08] E49: Nimzo-Indian: Rubinstein: 5 Bd3 d5 6 a3 Bxc3+ 7 bxc3.} 10. Qe2 {[%emt 0:06:20]} Bb7 {[%emt 0:06:46]} 11. e4 {[%emt 0:06:01] [#]} Qc6 $146 {[%emt 0:04:24] White is slightly better.} ({Predecessor:} 11... Qh5 12. h3 Nbd7 13. Bf4 Rac8 14. O-O cxd4 15. cxd4 Rc3 16. Rfe1 Rfc8 17. Bd2 R3c7 18. Bf4 Rc3 19. Bd2 R3c7 20. Bf4 {½-½ (20) Kaufman,L (2406)-Gulko,B (2535) ICC INT 2011}) 12. Ne5 {[%emt 0:09:54]} Qc7 {[%emt 0:03:03] White must now prevent ...cxd4.} 13. O-O {[%emt 0:01:59]} Nc6 {[%emt 0:06:17]} 14. Nf3 {[%emt 0:01:17] White is more active.} e5 {[%emt 0:03:15]} (14... Rfd8 $11 {remains equal.}) 15. d5 $36 {[%emt 0:21:04][%mdl 2048] White is really pushing.} Na5 {[%emt 0:01:57]} 16. Nd2 {[%emt 0:01:54] Prevents c4.} c4 {[%emt 0:27:38]} 17. Nxc4 {[%emt 0:04:04]} ({Stronger than} 17. Bxc4 Nxc4 18. Qxc4 (18. Nxc4 $2 Ba6 $19) 18... Qxc4 19. Nxc4 Nxe4 $17) 17... Nxc4 {[%emt 0:00:16]} 18. Bxc4 {[%emt 0:00:06]} Rac8 {[%emt 0:00:02]} 19. Bd3 {[%emt 0:03:59]} Qxc3 {[%emt 0:00:07]} (19... Nd7 $16) 20. Bg5 $18 {[%emt 0:03:38]} Qc5 {[%emt 0:05:11]} 21. a4 {[%emt 0:05:34][%cal Ba3a4,Ba4a5,Ba5a6][%mdl 32]} Nd7 {[%emt 0:04:04]} 22. a5 {[%emt 0:00:50]} Qd6 {[%emt 0:13:39]} 23. a6 {[%emt 0:06:06]} Ba8 {[%emt 0:00:08]} 24. Bc1 {[%emt 0:00:10]} Nc5 {[%emt 0:00:58] [#]} 25. Ba3 $1 {[%emt 0:00:05]} Rfd8 {[%emt 0:00:10]} 26. Rfc1 {[%emt 0:01:08]} Bc6 {[%emt 0:05:16]} 27. Bxc5 {[%emt 0:13:59]} bxc5 {[%emt 0:00:06]} 28. Rab1 {[%emt 0:00:04]} Bd7 {[%emt 0:01:21]} 29. Rb7 {[%emt 0:00:05]} Rc7 {[%emt 0:00:05]} (29... Ra8 $142 30. Qf3 Rdc8) 30. Qb2 {[%emt 0:01:03]} Rdc8 {[%emt 0:00:54]} 31. Bc4 {[%emt 0:00:06]} Kf8 {[%emt 0:00:05]} 32. Rb1 {[%emt 0:00:09]} Ke7 {[%emt 0:00:10]} 33. f4 {[%emt 0:01:50]} f6 {[%emt 0:00:02]} 34. fxe5 {[%emt 0:01:49]} (34. Qf2 $18) 34... Qxe5 $16 {[%emt 0:00:11]} 35. Rd1 {[%emt 0:02:44] Prevents Qd4+.} Kd6 {[%emt 0:01:57] [#]} (35... Rxb7 $16 36. Qxb7 Kd6) 36. Rb6+ $3 $18 {[%emt 0:01:31][%mdl 512]} axb6 {[%emt 0:00:02]} 37. Qxb6+ {[%emt 0:00:02]} Ke7 $2 {[%emt 0:01:15]} (37... Bc6 {is a better chance.} 38. Bb5 (38. dxc6+ Ke7 $16) 38... Ke7) 38. d6+ {[%emt 0:00:01]} Ke8 {[%emt 0:00:06] Hoping for ...Rc6.} 39. dxc7 {[%emt 0:02:49]} Qxc7 {[%emt 0:00:01]} 40. Qb3 {[%emt 0:00:32][%cal Od1d7] Threatens to win with Rxd7!} Ke7 {[%emt 0:01:44]} (40... Rd8 {is a better defense.} 41. e5 Bc6 42. exf6 gxf6 43. Re1+ Kf8) 41. Qa3 {[%emt 0:02:06] White is clearly winning.} (41. Bg8 c4 42. Qb4+ Qc5+ 43. Qxc5+ Rxc5 $14) 41... Ra8 {[%emt 0:00:28]} 42. e5 {[%emt 0:01:39]} Qxe5 {[%emt 0:00:28]} 43. Bd5 {[%emt 0:00:07]} ({Weaker is} 43. Qd3 Qd4+ 44. Qxd4 cxd4 $11) 43... Qe2 {[%emt 0:00:36]} 44. Qxc5+ {[%emt 0:00:48]} (44. Bf3 $142 Qxa6 45. Qxc5+ Ke8 46. Re1+ Kf7 47. Re7+ Kg8 48. Qd5+ Kh8 49. Qxa8+ Qxa8 50. Bxa8) 44... Ke8 {[%emt 0:00:00]} 45. Bf3 {[%emt 0:00:19] Weighted Error Value: White=0.08 (flawless) /Black=0.44} ({Not} 45. Bxa8 Qxd1+ 46. Kf2 Qd2+ 47. Kf3 Qd1+ 48. Kf2 Qd2+ 49. Kf3 Qd1+ 50. Kf2 $11) 1-0

[Event "5th Sharjah Masters 2022"]
[Site "Sharjah"]
[Date "2022.05.25"]
[Round "5.10"]
[White "Narayanan.S.L"]
[Black "Adhiban, B.."]
[Result "1/2-1/2"]
[ECO "D45"]
[WhiteElo "2662"]
[BlackElo "2616"]
[Annotator "TA"]
[PlyCount "211"]
[EventDate "2022.05.21"]
[EventType "swiss"]
[EventCountry "UAE"]
[SourceTitle "playchess.com"]
[Source "ChessBase"]
[SourceQuality "1"]
[TimeControl "5400+30"]

{[%evp 76,210,973,969,969,943,1785,1918,1515,1362,856,0,0,0,0,0,0,0,0,0,0,0,0,0,0,0,0,0,0,0,0,0,0,0,0,0,0,0,0,0,0,0,0,0,0,0,0,0,0,0,0,0,0,0,0,0,0,0,0,0,0,0,0,0,0,0,0,0,0,0,0,0,0,0,0,0,0,0,0,0,0,0,0,0,0,0,0,0,0,0,0,0,0,0,0,0,0,0,0,0,0,0,0,0,0,0,0,0,0,0,0,0,0,0,0,0,0,0,0,0,0,0,0,0,0,0,0,0,0,0,0,0,0,0,0,0,0]} 1. d4 {[%emt 0:00:03]} d5 {[%emt 0:00:08]} 2. c4 {[%emt 0:00:10]} e6 {[%emt 0:00:04]} 3. Nf3 {[%emt 0:00:09]} Nf6 {[%emt 0:00:06]} 4. Nc3 {[%emt 0:00:21]} c6 {[%emt 0:00:08]} 5. e3 {[%emt 0:00:42]} Nbd7 {[%emt 0:00:20]} 6. Qc2 {[%emt 0:00:08]} Bd6 {[%emt 0:00:28]} 7. Be2 {[%emt 0:00:11]} O-O {[%emt 0:07:23]} 8. O-O {[%emt 0:00:13]} Re8 {[%emt 0:00:02]} 9. b3 {[%emt 0:01:32]} b6 {[%emt 0:02:08]} 10. a4 {[%emt 0:03:14]} a5 {[%emt 0:04:04]} 11. Bb2 {[%emt 0:00:10]} Qe7 {[%emt 0:01:29]} 12. Rad1 {[%emt 0:02:06]} Bb7 {[%emt 0:00:50]} 13. Bd3 {[%emt 0:01:23]} e5 {[%emt 0:36:11]} 14. e4 {[%emt 0:00:53]} exd4 {[%emt 0:00:46]} 15. Nxd4 {[%emt 0:00:19]} Qe5 {[%emt 0:00:03]} 16. Nf3 {[%emt 0:00:44]} Qh5 {[%emt 0:00:04]} 17. exd5 {[%emt 0:19:32]} Ne5 {[%emt 0:02:52]} 18. Nxe5 {[%emt 0:00:19]} Bxe5 {[%emt 0:00:12]} 19. h3 {[%emt 0:05:24]} cxd5 {[%emt 0:00:07]} 20. cxd5 {[%emt 0:04:55]} Nxd5 {[%emt 0:10:47]} 21. Be2 {[%emt 0:30:14]} Qg6 {[%emt 0:06:41]} 22. Qxg6 {[%emt 0:00:13]} hxg6 {[%emt 0:00:02]} 23. Nxd5 {[%emt 0:00:13]} Bxd5 {[%emt 0:00:13]} 24. Bb5 {[%emt 0:00:57]} Bxb3 {[%emt 0:04:02]} 25. Rde1 {[%emt 0:01:40]} Bxb2 {[%emt 0:00:06]} 26. Rxe8+ {[%emt 0:00:07]} Rxe8 {[%emt 0:00:02]} 27. Bxe8 {[%emt 0:00:07]} Kf8 {[%emt 0:00:52]} 28. Bb5 {[%emt 0:01:30]} Bd4 {[%emt 0:00:08]} 29. Re1 {[%emt 0:01:30]} Be6 {[%emt 0:00:04]} 30. Kf1 {[%emt 0:00:30]} g5 {[%emt 0:04:12]} 31. f3 {[%emt 0:02:16]} g6 {[%emt 0:01:56]} 32. Ke2 {[%emt 0:03:16]} Kg7 {[%emt 0:00:10]} 33. Rd1 {[%emt 0:00:18]} Bc5 {[%emt 0:01:44]} 34. Rd8 {[%emt 0:00:16]} Kf6 {[%emt 0:00:03]} 35. Kd3 {[%emt 0:03:25]} Ke5 {[%emt 0:00:18]} 36. Bc4 {[%emt 0:02:51]} Bxc4+ {[%emt 0:00:57]} 37. Kxc4 {[%emt 0:00:04]} Kf4 {[%emt 0:00:03]} 38. Rd7 {[%emt 0:00:50]} Kg3 {[%emt 0:00:30]} 39. Rxf7 {[%emt 0:00:38]} Kxg2 {[%emt 0:00:04]} 40. Rf6 {[%emt 0:01:20]} Kxh3 {[%emt 0:00:25]} 41. Rxg6 {[%emt 0:00:33]} Kg3 {[%emt 0:00:23] [#]} 42. Rf6 $1 {[%emt 0:01:10]} Be7 {[%emt 0:05:44] [#]} 43. Rf5 $2 {[%emt 0:02:31]} (43. Rf7 $1 $18 {[%cal Rf7e7]} Bc5 44. Kd5) 43... g4 $11 {[%emt 0:02:04]} 44. fxg4 {[%emt 0:05:10]} Kxg4 {[%emt 0:00:03]} 45. Rf7 {[%emt 0:01:42]} Bc5 {[%emt 0:00:09]} 46. Kd5 {[%emt 0:00:30]} (46. Kb5 $5 {[%cal Rf7f6]} Bd4 47. Kc4 $18) 46... Kg5 {[%emt 0:00:13]} 47. Ke6 {[%emt 0:00:12]} Kg6 {[%emt 0:01:44]} 48. Rf5 {[%emt 0:00:13]} Kg7 {[%emt 0:00:27]} 49. Rf6 {[%emt 0:00:25]} Bb4 {[%emt 0:01:57]} 50. Rf3 {[%emt 0:01:48]} Bc5 $1 {[%emt 0:00:16]} 51. Rf1 $1 {[%emt 0:01:26]} Bb4 {[%emt 0:00:15]} 52. Rf7+ {[%emt 0:02:38]} Kg6 {[%emt 0:00:06]} 53. Rc7 {[%emt 0:00:29]} Bc5 $1 {[%emt 0:00:28]} 54. Rb7 {[%emt 0:00:48]} Be3 {[%emt 0:00:33]} 55. Rb8 {[%emt 0:00:33]} (55. Rf7 $5 {[%cal Rf7f3]} Kg5 56. Ke5 $18) 55... Kg7 {[%emt 0:00:07]} 56. Rd8 {[%emt 0:01:14]} Bc5 {[%emt 0:00:26]} 57. Rc8 {[%emt 0:01:35]} Bb4 {[%emt 0:00:26]} 58. Rc4 {[%emt 0:00:37]} Bc5 {[%emt 0:00:16]} 59. Rg4+ {[%emt 0:00:09]} Kf8 $1 {[%emt 0:00:06]} 60. Kd7 {[%emt 0:00:26]} Kf7 {[%emt 0:01:55]} 61. Rf4+ {[%emt 0:00:10]} Kg6 {[%emt 0:00:17]} 62. Rf1 {[%emt 0:00:47]} Kg7 {[%emt 0:00:56]} 63. Ke6 {[%emt 0:00:27]} Bb4 {[%emt 0:01:58]} 64. Rf7+ {[%emt 0:02:14]} Kg6 {[%emt 0:00:04]} 65. Rd7 {[%emt 0:00:00]} (65. Rf1 $5 {[%cal Rf1g1]} Kg5 66. Rf5+ Kg4 67. Rf7 $18) 65... Bc5 {[%emt 0:00:12]} 66. Rb7 {[%emt 0:00:00]} Be3 {[%emt 0:00:24]} 67. Rf7 {[%emt 0:00:21]} Bc5 $1 {[%emt 0:00:18]} 68. Rf6+ {[%emt 0:00:04]} Kg7 {[%emt 0:00:21]} 69. Kf5 {[%emt 0:00:07]} Bf2 {[%emt 0:02:08]} 70. Rd6 {[%emt 0:00:44]} Kf7 {[%emt 0:01:16]} 71. Rd2 {[%emt 0:00:15]} Be3 {[%emt 0:00:48]} 72. Rd7+ {[%emt 0:00:08]} Ke8 {[%emt 0:00:07]} 73. Ke6 {[%emt 0:00:07]} Bc5 {[%emt 0:00:10]} 74. Rd3 {[%emt 0:00:12]} Kf8 {[%emt 0:00:45]} 75. Kf6 {[%emt 0:01:25]} Ke8 {[%emt 0:00:43]} 76. Rd5 {[%emt 0:00:06]} Bb4 {[%emt 0:00:33]} 77. Ke6 {[%emt 0:00:05]} Ba3 {[%emt 0:01:03]} 78. Rd1 {[%emt 0:00:31]} Bb4 {[%emt 0:00:33]} 79. Rd3 {[%emt 0:00:06]} Kf8 {[%emt 0:01:10]} 80. Rd7 {[%emt 0:00:08]} Bc5 {[%emt 0:00:29]} 81. Rh7 {[%emt 0:01:01]} Be3 {[%emt 0:00:57]} 82. Ra7 {[%emt 0:01:59]} Bc5 {[%emt 0:00:15]} 83. Rc7 {[%emt 0:01:12]} Be3 {[%emt 0:01:11]} 84. Rc3 {[%emt 0:00:45]} Bc5 {[%emt 0:00:09]} 85. Rg3 {[%emt 0:00:04]} Bb4 {[%emt 0:00:10]} 86. Rg5 {[%emt 0:00:39]} Bc5 {[%emt 0:00:14]} 87. Rg4 {[%emt 0:00:31]} Bb4 {[%emt 0:00:06]} 88. Rd4 {[%emt 0:00:07]} Bc5 {[%emt 0:00:17]} 89. Rd3 {[%emt 0:00:05]} Bb4 {[%emt 0:00:17]} 90. Rd7 {[%emt 0:00:25]} Bc5 {[%emt 0:00:31]} 91. Rc7 {[%emt 0:00:14]} Be3 {[%emt 0:00:42]} 92. Kd7 {[%emt 0:01:46]} Kf7 {[%emt 0:02:02]} 93. Kd6+ {[%emt 0:00:43]} Kf6 {[%emt 0:00:24]} 94. Kd5 {[%emt 0:00:12]} Bc5 {[%emt 0:00:12]} 95. Rd7 {[%emt 0:00:22]} Bb4 {[%emt 0:00:29]} 96. Rb7 {[%emt 0:00:18]} Bc5 {[%emt 0:00:04]} 97. Kc6 {[%emt 0:00:03]} Ke6 {[%emt 0:00:15]} 98. Rxb6 {[%emt 0:00:06]} Bxb6 {[%emt 0:00:03]} 99. Kxb6 {[%emt 0:00:05]} Kd7 {[%emt 0:00:02]} 100. Kxa5 {[%emt 0:00:04]} Kc7 {[%emt 0:00:02]} 101. Kb5 {[%emt 0:00:05]} Kb7 {[%emt 0:00:03]} 102. a5 {[%emt 0:00:03]} Ka7 {[%emt 0:00:02]} 103. a6 {[%emt 0:00:04]} Ka8 {[%emt 0:00:03]} 104. Kb6 {[%emt 0:00:03]} Kb8 {[%emt 0:00:02]} 105. a7+ {[%emt 0:00:03]} Ka8 {[%emt 0:00:02]} 106. Ka6 {[%emt 0:00:04]} 1/2-1/2

[Event "5th Sharjah Masters 2022"]
[Site "Sharjah"]
[Date "2022.05.25"]
[Round "5.11"]
[White "Gukesh D"]
[Black "Sethuraman, S.P."]
[Result "1/2-1/2"]
[ECO "D43"]
[WhiteElo "2659"]
[BlackElo "2613"]
[Annotator "TA"]
[PlyCount "127"]
[EventDate "2022.05.21"]
[EventType "swiss"]
[EventCountry "UAE"]
[SourceTitle "playchess.com"]
[Source "ChessBase"]
[SourceQuality "1"]
[TimeControl "5400+30"]

{[%evp 19,127,0,0,-26,-26,-16,-22,-37,-25,-75,-30,-40,-29,-41,-52,-57,-70,-60,-56,-55,-14,-18,32,-26,0,-72,-58,-42,0,0,0,-22,-17,-17,-14,-23,-19,-24,0,-19,-23,-47,0,0,0,0,0,0,0,0,0,0,0,0,0,0,0,0,0,0,0,0,0,0,0,0,0,0,0,0,0,0,44,44,44,44,44,44,44,44,44,44,44,44,44,44,44,44,44,44,44,0,44,44,44,44,44,44,44,0,0,0,0,0,0,0,0,0,0,0]} 1. d4 {[%emt 0:00:27]} d5 {[%emt 0:00:08]} 2. c4 {[%emt 0:00:59]} c6 {[%emt 0:00:07]} 3. Nf3 {[%emt 0:00:51]} Nf6 {[%emt 0:00:06]} 4. Nc3 {[%emt 0:01:06]} e6 {[%emt 0:00:06]} 5. Bg5 {[%emt 0:01:42][%cal Bc1g5,Bg5h4,Bh4g3][%mdl 32]} h6 {[%emt 0:00:07]} 6. Bh4 {[%emt 0:00:27]} dxc4 {[%emt 0:00:11]} 7. e4 {[%emt 0:00:07]} g5 {[%emt 0:00:09]} 8. Bg3 {[%emt 0:00:05]} b5 {[%emt 0:00:04]} 9. Be2 {[%emt 0:00:40]} Bb7 {[%emt 0:00:06]} 10. O-O {[%emt 0:00:08]} Nbd7 {[%emt 0:00:56]} 11. Nd2 {[%emt 0:00:29] D43: Semi-Slav: 5 Bg5 h6.} h5 {[%emt 0:01:04] aiming for ...h4.} 12. h3 {[%emt 0:00:07]} g4 {[%emt 0:01:11] With the idea ...gxh3.} 13. h4 {[%emt 0:00:14]} Qb6 {[%emt 0:00:54]} 14. a4 {[%emt 0:04:37]} (14. e5 $11 {remains equal.} Nd5 15. a4) 14... a6 $1 $17 {[%emt 0:00:22]} (14... Qxd4 15. axb5 Nb6 16. Nxc4 $1 {[%mdl 512]} Qxd1 17. Rfxd1 Nxc4 18. Bxc4 $16) 15. e5 $1 {[%emt 0:10:17]} Nd5 {[%emt 0:01:32]} 16. Nde4 {[%emt 0:00:07]} c5 {[%emt 0:16:31]} 17. Nxd5 {[%emt 0:12:10]} Bxd5 {[%emt 0:04:36]} 18. dxc5 $1 {[%emt 0:01:16]} Bxc5 {[%emt 0:03:27]} 19. Nd6+ {[%emt 0:00:27]} Bxd6 {[%emt 0:03:59]} 20. exd6 {[%emt 0:00:13] [#]} f5 $146 {[%emt 0:11:54]} ({Black should play} 20... Qc6 $11) ({Predecessor:} 20... Qc6 21. f3 Rg8 22. Kh2 f5 23. Qe1 Kf7 24. Bd1 Nf6 25. axb5 axb5 26. Rxa8 Qxa8 {½-½ (43) Zuev,D (2480)-Poli,G (2460) ICCF email 2015}) 21. Kh2 {[%emt 0:11:18]} (21. Qd2 $14) 21... Kf7 {[%emt 0:01:53]} 22. f3 {[%emt 0:02:11]} (22. Qd2 $1 $11) 22... Nf6 $1 {[%emt 0:13:54]} 23. axb5 {[%emt 0:06:35]} gxf3 {[%emt 0:05:14]} (23... axb5 $5 {[%cal Ra8a1]} 24. Qd2 Rhg8 $15) 24. Bxf3 {[%emt 0:00:16]} Qxb5 {[%emt 0:04:24]} 25. Qe1 {[%emt 0:09:05]} a5 {[%emt 0:06:00]} (25... Qxb2 $2 26. Rb1 Ng4+ 27. Kh3 $18) 26. Rd1 {[%emt 0:02:36] Black must now prevent Bxd5.} Bxf3 {[%emt 0:01:08]} (26... Qxb2 $2 27. Rxd5 $1 {[%mdl 512]} Qb4 28. Qe5 $1 $18) 27. gxf3 {[%emt 0:00:28]} Rhg8 {[%emt 0:01:26]} (27... Qxb2+ 28. Rf2 Qb4 29. Qe3 $17) 28. Qe2 {[%emt 0:02:20]} Nd5 {[%emt 0:05:00]} 29. Rd4 {[%emt 0:06:03] Inhibits f4.} Rab8 {[%emt 0:03:51]} 30. Rf2 {[%emt 0:08:55]} Rbc8 {[%emt 0:00:18]} (30... c3 $1 $15 31. bxc3 Qxe2 32. Rxe2 Nxc3) 31. b3 {[%emt 0:01:27][%cal Rb3c4]} Qc5 {[%emt 0:07:05]} (31... Qxb3 $2 {[#]} 32. Rxd5 $1 {[%mdl 512]} Qb7 33. Rxa5 $18) (31... Nc3 $2 32. Qe3 Rxg3 33. d7 $18 (33. bxc4 $2 Qb1 $19)) 32. Rxc4 {[%emt 0:02:28] Really sharp!} Qb6 {[%emt 0:01:25] Strongly threatening ...Rxc4.} 33. Be5 {[%emt 0:04:34] Threatens to win with Rxc8.} Rxc4 {[%emt 0:06:12]} (33... Qxb3 $2 34. Rxc8 Rxc8 35. d7 $18) 34. bxc4 {[%emt 0:00:07]} Ne3 {[%emt 0:00:03][%cal Oe3c4]} 35. Qb2 {[%emt 0:08:08]} Nxc4 {[%emt 0:01:12]} 36. Qxb6 {[%emt 0:00:05]} Nxb6 $11 {[%emt 0:00:01][%mdl 4096] Endgame KRB-KRN} 37. Rb2 {[%emt 0:00:14]} Nd7 {[%emt 0:01:03]} 38. Rb7 {[%emt 0:00:02]} Ke8 {[%emt 0:00:50]} 39. Bc3 {[%emt 0:01:14]} Rg6 {[%emt 0:00:25]} 40. Rb5 {[%emt 0:01:37]} a4 {[%emt 0:00:44]} 41. Ra5 {[%emt 0:00:05]} e5 {[%emt 0:00:42]} 42. Bxe5 {[%emt 0:00:26]} Nxe5 {[%emt 0:00:28]} 43. Rxe5+ {[%emt 0:00:02] KR-KR} Kd7 {[%emt 0:00:04]} 44. Rxf5 {[%emt 0:02:48]} Rxd6 {[%emt 0:00:04]} ({Don't do} 44... a3 45. Ra5 $16) 45. Ra5 {[%emt 0:00:05]} Ke7 {[%emt 0:00:25]} 46. Rxa4 {[%emt 0:00:37]} Kf6 {[%emt 0:00:13]} 47. Kg3 {[%emt 0:00:16]} Kg6 {[%emt 0:00:32]} 48. Ra5 {[%emt 0:00:53]} Rd4 {[%emt 0:00:13]} 49. Rg5+ {[%emt 0:00:07]} Kh6 $1 {[%emt 0:00:03]} 50. Re5 {[%emt 0:00:11]} Kg6 {[%emt 0:00:14]} 51. Re6+ {[%emt 0:00:05]} Kg7 {[%emt 0:00:14]} 52. Re4 {[%emt 0:00:11]} Rd5 {[%emt 0:01:31]} 53. Ra4 $1 {[%emt 0:00:06]} Rf5 {[%emt 0:00:51]} 54. Ra6 {[%emt 0:01:08]} Kf7 {[%emt 0:00:34]} 55. Ra4 {[%emt 0:01:26] Intending Rf4 and mate.} Kg6 {[%emt 0:00:09]} 56. Kf2 {[%emt 0:00:04]} Re5 {[%emt 0:00:30]} 57. Ra6+ {[%emt 0:00:26]} Kg7 {[%emt 0:00:35]} 58. Rd6 {[%emt 0:00:08]} Kf7 {[%emt 0:00:06]} 59. f4 {[%emt 0:00:13]} Re4 {[%emt 0:00:28] The position is equal.} 60. Kf3 {[%emt 0:00:01]} Ra4 {[%emt 0:00:11]} 61. Ke3 {[%emt 0:00:09]} Kg7 {[%emt 0:00:53]} 62. Rd7+ {[%emt 0:00:25]} Kg6 {[%emt 0:00:12]} 63. Rd4 {[%emt 0:00:05]} Ra1 {[%emt 0:00:16]} 64. Ke4 {[%emt 0:06:21] Weighted Error Value: White=0.09 (flawless) /Black=0.06 (flawless)} 1/2-1/2

[Event "5th Sharjah Masters 2022"]
[Site "Sharjah"]
[Date "2022.05.25"]
[Round "5.12"]
[White "Ganguly, Surya Shekhar"]
[Black "Niemann, Hans Moke"]
[Result "0-1"]
[ECO "C54"]
[WhiteElo "2616"]
[BlackElo "2656"]
[Annotator "TA"]
[PlyCount "91"]
[EventDate "2022.05.21"]
[EventType "swiss"]
[EventCountry "UAE"]
[SourceTitle "playchess.com"]
[Source "ChessBase"]
[SourceQuality "1"]
[TimeControl "5400+30"]

{[%evp 11,91,16,14,18,21,12,19,6,21,17,20,24,22,8,0,-17,28,19,33,2,601,21,13,26,41,47,59,0,80,82,61,56,77,92,81,79,89,55,81,84,83,0,-5,-9,14,16,19,25,14,15,129,110,127,120,131,133,253,247,247,258,247,183,218,201,191,124,134,134,134,120,127,102,95,65,68,8,54,0,44,0,45,40]} 1. e4 {[%emt 0:00:14]} e5 {[%emt 0:00:26]} 2. Nf3 {[%emt 0:00:09]} Nc6 {[%emt 0:00:08]} 3. Bc4 {[%emt 0:00:06]} Nf6 {[%emt 0:00:10]} 4. d3 {[%emt 0:00:05]} Bc5 {[%emt 0:00:08]} 5. O-O {[%emt 0:00:10]} d6 {[%emt 0:00:28]} 6. c3 {[%emt 0:00:11]} a6 {[%emt 0:00:07]} 7. a4 {[%emt 0:01:01] is recently more successful than 7.Bb3. C54: Giuoco Piano: 4 c3 Nf6, main lines with 5 d4 and 5 d3.} Ba7 {[%emt 0:00:30]} 8. Re1 {[%emt 0:00:30]} O-O {[%emt 0:00:30]} 9. h3 {[%emt 0:00:30] The position is equal.} b5 {[%emt 0:00:30]} 10. Bb3 {[%emt 0:00:30]} b4 {[%emt 0:00:30]} 11. Nbd2 {[%emt 0:00:30]} Rb8 {[%emt 0:00:06]} 12. Nf1 {[%emt 0:04:09]} Be6 {[%emt 0:01:07]} 13. Bc2 {[%emt 0:05:35]} h6 {[%emt 0:08:13]} 14. d4 {[%emt 0:14:05] [#]} exd4 $146 {[%emt 0:00:30]} ({Predecessor:} 14... bxc3 15. bxc3 exd4 16. cxd4 d5 17. e5 Ne4 18. Ng3 f5 19. exf6 Qxf6 20. Nxe4 dxe4 21. Rxe4 {1-0 (34) Rathnakaran,K (2437)-Singh,D (2326) New Delhi 2008}) 15. Nxd4 {[%emt 0:00:30]} (15. cxd4 $5 {[%cal Rd4d5]} b3 16. Bb1 $14) 15... bxc3 $2 {[%mdl 8192]} 16. bxc3 $2 {[%emt 0:05:15]} (16. Nxc6 $18 Qd7 17. Nxb8 (17. Nxa7 cxb2 18. Bxb2 Rxb2 $18) 17... Rxb8 18. bxc3) 16... Bd7 $11 {[%emt 0:09:52]} 17. Be3 {[%emt 0:06:45] Strongly threatening Nxc6.} Bb6 {[%emt 0:02:05]} 18. Ng3 {[%emt 0:03:43]} Re8 {[%emt 0:02:41]} 19. Rb1 {[%emt 0:11:31]} (19. Qd3 $14) 19... Ba5 {[%emt 0:09:57]} (19... Ne5 $11) 20. Rxb8 $16 {[%emt 0:01:21]} Nxb8 {[%emt 0:00:30]} 21. Qd3 {[%emt 0:00:30]} Nc6 {[%emt 0:00:30]} 22. Nxc6 {[%emt 0:00:30]} Bxc6 {[%emt 0:01:45]} 23. Bd4 {[%emt 0:05:07]} Bb7 {[%emt 0:03:38]} 24. Nf5 Bxe4 {[%emt 0:11:34] [#]} 25. Rxe4 {[%emt 0:18:55]} Rxe4 {[%emt 0:00:23] [#]} (25... Nxe4 $2 26. Nxg7 Re7 27. Nf5 $16) 26. Qxa6 {[%emt 0:06:29]} (26. Nxh6+ $2 gxh6 27. Qg3+ Kf8 28. Bxe4 Nxe4 $19) (26. Qg3 $1 $16 {[%csl Gf5][%cal Rg3g7]} g6 27. Bxe4 (27. Nxh6+ Kf8 $16) 27... Nxe4 28. Nxh6+ Kf8 29. Qf3) 26... Re1+ $11 {[%emt 0:20:50]} 27. Kh2 {[%emt 0:00:07] Hoping for Bxf6.} Bb6 {[%emt 0:00:30] ...g6 is the strong threat.} 28. Bxf6 {[%emt 0:00:15]} gxf6 {[%emt 0:00:00]} (28... Qxf6 {is a self mate.} 29. Qc8+) 29. Qc4 {[%emt 0:00:19]} Kf8 $1 {[%emt 0:02:00] White must now prevent ...Qe8.} (29... Qf8 $2 30. Qh4 (30. Qf4 Re5 $18) 30... Rc1 31. Nxh6+ Qxh6 32. Qxh6 $18) 30. Qh4 {[%emt 0:03:06]} Re5 {[%emt 0:00:34]} (30... Bxf2 $1 $11 31. Qxf2 Qe8) 31. Qxh6+ $16 {[%emt 0:01:44]} Ke8 {[%emt 0:00:05] [#]} 32. f4 $1 $36 {[%emt 0:02:11][%mdl 2048] White is in control.} Rc5 {[%emt 0:01:06]} 33. Qh7 {[%emt 0:00:18] And now Bb3 would win.} d5 {[%emt 0:02:34]} (33... Rxf5 $16 {might work better.} 34. Qxf5 (34. Bxf5 d5 $16) 34... d5) 34. Bd1 {[%emt 0:01:39]} Kd7 {[%emt 0:00:36]} 35. Qxf7+ {[%emt 0:00:28]} Kc8 {[%emt 0:00:05]} 36. Ne7+ {[%emt 0:00:16]} Kb8 {[%emt 0:00:17]} 37. Qxf6 {[%emt 0:00:10] aiming for Nc6+.} Qd7 {[%emt 0:00:30] Against Nc6+} 38. Bf3 {[%emt 0:00:30]} (38. Qe5 $18) 38... c6 {[%emt 0:00:30]} 39. Bg4 {[%emt 0:00:30]} Qc7 {[%emt 0:00:30]} 40. h4 {[%emt 0:00:30]} Ba5 {[%emt 0:00:30]} 41. Qf8+ {[%emt 0:00:30]} Kb7 {[%emt 0:00:30]} 42. Nc8 {[%emt 0:00:30]} Rxc3 {[%emt 0:00:30]} 43. Nd6+ {[%emt 0:00:30]} ({White should try} 43. g3 $14) 43... Ka7 {[%emt 0:00:30]} (43... Kb6 $11 {might be stronger.}) 44. Nc8+ {[%emt 0:00:30]} Kb7 {[%emt 0:00:30]} 45. Nd6+ {[%emt 0:00:30]} (45. g3 $5 {[%cal Rh4h5]}) 45... Ka7 {[%emt 0:00:30]} 46. h5 {[%emt 0:00:30][%mdl 32768] Weighted Error Value: White=0.32/Black=0.35. Loss on time!?} 0-1